fUST/lending_fUST_20260212
["ID","MTS","AMOUNT","RATE_DAILY","PERIOD"]
[405172104,1770897046307,-500.0,0.00023649,2]
[405172106,1770897046316,-500.0,0.00023649,2]
[405172108,1770897046326,-500.0,0.00023649,2]
[405172110,1770897046335,-500.0,0.00023649,2]
[405172111,1770897046344,-500.0,0.00023649,2]
[405172113,1770897046353,-500.0,0.00023649,2]
[405172116,1770897046363,-500.0,0.00023649,2]
[405172118,1770897046372,-500.0,0.00023649,2]
[405172120,1770897046382,-500.0,0.00023649,2]
[405172121,1770897046391,-500.0,0.00023649,2]
[405172124,1770897046401,-500.0,0.00023649,2]
[405172126,1770897046410,-500.0,0.00023649,2]
[405172128,1770897046420,-500.0,0.00023649,2]
[405172130,1770897046429,-500.0,0.00023649,2]
[405172131,1770897046438,-377.60134444,0.00023649,2]
[405172133,1770897046448,-500.0,0.00023649,2]
[405172136,1770897046458,-500.0,0.00023649,2]
[405172138,1770897046467,-500.0,0.00023649,2]
[405172140,1770897046476,-500.0,0.00023649,2]
[405172142,1770897046485,-500.0,0.00023649,2]
[405172144,1770897046495,-500.0,0.00023649,2]
[405172145,1770897046504,-500.0,0.00023649,2]
[405172148,1770897046515,-500.0,0.00023649,2]
[405172149,1770897046524,-500.0,0.00023649,2]
[405172152,1770897046534,-500.0,0.00023649,2]
[405172154,1770897046543,-500.0,0.00023649,2]
[405172155,1770897046554,-500.0,0.00023649,2]
[405172158,1770897046563,-500.0,0.00023649,2]
[405172160,1770897046572,-500.0,0.00023649,2]
[405172161,1770897046582,-500.0,0.00023649,2]
[405172163,1770897046591,-500.0,0.00023649,2]
[405172165,1770897046600,-500.0,0.00023649,2]
[405172167,1770897046611,-500.0,0.00023649,2]
[405172169,1770897046622,-500.0,0.00023649,2]
[405172171,1770897046637,-500.0,0.00023649,2]
[405172173,1770897046646,-500.0,0.00023649,2]
[405172175,1770897046655,-500.0,0.00023649,2]
[405172177,1770897046664,-500.0,0.00023649,2]
[405172179,1770897046673,-500.0,0.00023649,2]
[405172181,1770897046682,-500.0,0.00023649,2]
[405172183,1770897046692,-500.0,0.00023649,2]
[405172185,1770897046701,-500.0,0.00023649,2]
[405172187,1770897046710,-500.0,0.00023649,2]
[405172189,1770897046719,-500.0,0.00023649,2]
[405172191,1770897046728,-500.0,0.00023649,2]
[405172193,1770897046737,-500.0,0.00023649,2]
[405172195,1770897046747,-500.0,0.00023649,2]
[405172197,1770897046756,-282.74742167,0.00023649,2]
[405172199,1770897046765,-500.0,0.00023649,2]
[405172201,1770897046777,-500.0,0.00023649,2]
[405172203,1770897046787,-500.0,0.00023649,2]
[405172205,1770897046796,-418.43836054,0.00023649,2]
[405172207,1770897046806,-500.0,0.00023649,2]
[405172209,1770897046815,-500.0,0.00023649,2]
[405172211,1770897046824,-500.0,0.00023649,2]
[405172213,1770897046834,-500.0,0.00023649,2]
[405172215,1770897046843,-500.0,0.00023649,2]
[405172217,1770897046852,-500.0,0.00023649,2]
[405172219,1770897046862,-500.0,0.00023649,2]
[405172221,1770897046871,-500.0,0.00023649,2]
[405172223,1770897046880,-500.0,0.00023649,2]
[405172225,1770897046889,-500.0,0.00023649,2]
[405172227,1770897046899,-426.48990935,0.00023649,2]
[405172229,1770897046908,-500.0,0.00023649,2]
[405172231,1770897046918,-500.0,0.00023649,2]
[405172233,1770897046927,-500.0,0.00023649,2]
[405172235,1770897046935,-500.0,0.00023649,2]
[405172237,1770897046944,-500.0,0.00023649,2]
[405172238,1770897046957,-500.0,0.00023649,2]
[405172240,1770897046967,-500.0,0.00023649,2]
[405172243,1770897046976,-500.0,0.00023649,2]
[405172244,1770897046987,-500.0,0.00023649,2]
[405172246,1770897046999,-500.0,0.00023649,2]
[405172248,1770897047008,-500.0,0.00023649,2]
[405172250,1770897047017,-500.0,0.00023649,2]
[405172253,1770897047030,-500.0,0.00023649,2]
[405172255,1770897047040,-500.0,0.00023649,2]
[405172256,1770897047049,-500.0,0.00023649,2]
[405172259,1770897047059,-500.0,0.00023649,2]
[405172260,1770897047069,-500.0,0.00023649,2]
[405172262,1770897047079,-500.0,0.00023649,2]
[405172264,1770897047088,-500.0,0.00023649,2]
[405172266,1770897047097,-500.0,0.00023649,2]
[405172268,1770897047107,-500.0,0.00023649,2]
[405172271,1770897047116,-500.0,0.00023649,2]
[405172272,1770897047125,-500.0,0.00023649,2]
[405172274,1770897047135,-500.0,0.00023649,2]
[405172275,1770897047145,-500.0,0.00023649,2]
[405172276,1770897047154,-258.76972273,0.00023649,2]
[405172277,1770897047163,-144.691216,0.00023649,2]
[405172285,1770897047569,352.67681007,0.00022778,2]
[405172354,1770897050222,634.81825812,0.00022778,2]
[405172653,1770897053201,1127.43722642,0.00022778,2]
[405174038,1770897068159,2093.96321138,0.0002352,2]
[405175528,1770897083369,20000.0,0.000235,2]
[405179180,1770897123932,10000.0,0.000235,2]
[405182316,1770897249298,158.47115804,0.00022818,2]
[405182317,1770897255209,172.87766138,0.00022778,2]
[405182318,1770897258304,310.86861069,0.00022778,2]
[405182324,1770897344817,8656.5485708,0.00022649,2]
[405182359,1770897458472,4730.0,0.0002352,2]
[405182410,1770897576368,5227.758551,0.00022649,2]
[405182414,1770897606353,1507.13,0.000195,2]
[405182415,1770897607071,1507.13,0.000195,2]
[405182416,1770897607992,1507.13,0.000196,2]
[405182417,1770897608954,1507.13,0.000196,2]
[405182418,1770897609652,1507.13,0.000197,2]
[405182420,1770897610227,1507.13,0.000197,2]
[405182421,1770897611308,1507.13,0.000197,2]
[405182422,1770897611870,1507.13,0.000198,2]
[405182423,1770897612141,100000.0,0.0001999,2]
[405182424,1770897613197,1507.13,0.000198,2]
[405182425,1770897614463,1507.13,0.000199,2]
[405182426,1770897615055,1507.13,0.000199,2]
[405182427,1770897615753,1507.13,0.000199,2]
[405182428,1770897616447,1507.13,0.0002,2]
[405182429,1770897617419,1507.13,0.0002,2]
[405182430,1770897618151,1507.13,0.000201,2]
[405182431,1770897618871,1507.13,0.000201,2]
[405182432,1770897619557,1507.13,0.000201,2]
[405182433,1770897620245,1507.13,0.000202,2]
[405182434,1770897620942,1507.13,0.000202,2]
[405182435,1770897621624,1507.13,0.000203,2]
[405182436,1770897622326,1507.13,0.000203,2]
[405182437,1770897622908,1507.13,0.000203,2]
[405182438,1770897623468,1507.13,0.000204,2]
[405182439,1770897624152,1507.13,0.000204,2]
[405182440,1770897624863,1507.13,0.000205,2]
[405182441,1770897626140,1507.13,0.000205,2]
[405182442,1770897626910,1507.13,0.000205,2]
[405182443,1770897627608,1507.13,0.000206,2]
[405182444,1770897628168,1507.13,0.000206,2]
[405182464,1770897629020,1507.13,0.000207,2]
[405182479,1770897629774,1507.13,0.000207,2]
[405182499,1770897630465,1507.13,0.000207,2]
[405182507,1770897631170,1507.13,0.000208,2]
[405182509,1770897631876,1507.13,0.000208,2]
[405182510,1770897632533,1507.13,0.000209,2]
[405182512,1770897633277,1507.13,0.000209,2]
[405182513,1770897633807,1507.13,0.000209,2]
[405182514,1770897634875,1507.13,0.00021,2]
[405182515,1770897635368,1507.13,0.00021,2]
[405182516,1770897635901,1507.13,0.000211,2]
[405182517,1770897636568,1507.13,0.000211,2]
[405182518,1770897637475,1507.13,0.000211,2]
[405182519,1770897638126,1507.13,0.000212,2]
[405182520,1770897639134,1507.13,0.000212,2]
[405182521,1770897639697,1507.13,0.000213,2]
[405182522,1770897640247,1507.13,0.000213,2]
[405182523,1770897640929,1507.13,0.000213,2]
[405182524,1770897641604,1507.13,0.000214,2]
[405182525,1770897642296,1507.13,0.000214,2]
[405182526,1770897644591,1506.98,0.000195,2]
[405182569,1770897684855,1490.2662999,0.00022831,2]
[405182572,1770897719291,-223.51535719,0.00023613,2]
[405182573,1770897719317,-791.0,0.00023613,2]
[405182574,1770897719345,-347.1001023,0.0002363,2]
[405182575,1770897719429,-171.63486373,0.00023647,2]
[405182661,1770897864225,624.82407471,0.0002352,2]
[405182665,1770897950114,166.83347773,0.00022777,2]
[405182666,1770897953222,300.30025991,0.00022777,2]
[405182667,1770897956305,533.86712873,0.00022777,2]
[405182668,1770897958852,327.48342165,0.00022678,2]
[405182669,1770898083264,197.37,0.00014386,2]
[405182670,1770898151284,503.15686921,0.00022777,2]
[405182671,1770898153986,905.68236458,0.00022777,2]
[405182672,1770898156988,1610.10198147,0.00022777,2]
[405182673,1770898159988,987.66467857,0.00022678,2]
[405182675,1770898211704,290.618699,0.00022637,2]
[405182827,1770898239301,-286.53,0.000236,2]
[405182829,1770898239311,-585.25959123,0.000236,8]
[405182831,1770898239320,-790.0,0.000236,2]
[405182833,1770898239329,-347.1001023,0.000236,2]
[405182835,1770898239342,-223.51535719,0.00023617,3]
[405182837,1770898239351,-1200.0,0.00023643,2]
[405182839,1770898239360,-332.69299292,0.00023644,2]
[405182841,1770898239370,-500.0,0.00023644,2]
[405182843,1770898239380,-500.0,0.00023644,2]
[405182845,1770898239389,-500.0,0.00023644,2]
[405182847,1770898239399,-500.0,0.00023644,2]
[405182849,1770898239410,-500.0,0.00023644,2]
[405182851,1770898239419,-500.0,0.00023644,2]
[405182852,1770898239429,-500.0,0.00023644,2]
[405182855,1770898239438,-500.0,0.00023644,2]
[405182857,1770898239447,-500.0,0.00023644,2]
[405182859,1770898239457,-500.0,0.00023644,2]
[405182861,1770898239466,-500.0,0.00023644,2]
[405182862,1770898239475,-500.0,0.00023644,2]
[405182864,1770898239489,-500.0,0.00023644,2]
[405182866,1770898239498,-500.0,0.00023644,2]
[405182869,1770898239507,-500.0,0.00023644,2]
[405182870,1770898239517,-158.33278584,0.00023644,2]
[405182873,1770898239526,-500.0,0.00023644,2]
[405182875,1770898239537,-500.0,0.00023644,2]
[405182876,1770898239546,-500.0,0.00023644,2]
[405182879,1770898239555,-478.27474217,0.00023644,2]
[405182881,1770898239565,-500.0,0.00023644,2]
[405182882,1770898239574,-500.0,0.00023644,2]
[405182884,1770898239583,-500.0,0.00023644,2]
[405182886,1770898239593,-245.65487787,0.00023644,2]
[405182889,1770898239602,-500.0,0.00023644,2]
[405182890,1770898239612,-500.0,0.00023644,2]
[405182892,1770898239620,-300.0,0.00023644,2]
[405182894,1770898239629,-300.0,0.00023644,2]
[405182896,1770898239638,-300.0,0.00023644,2]
[405182898,1770898239648,-300.0,0.00023644,2]
[405182900,1770898239657,-21398.95606955,0.00023645,2]
[405182903,1770898239669,-2095.00054345,0.00023645,2]
[405182975,1770898240358,-1362.14,0.00023645,2]
[405183509,1770898245764,5000.0,0.0002352,2]
[405183574,1770898246335,-25143.903387,0.00023645,2]
[405183577,1770898246347,-155.0,0.00023646,2]
[405183578,1770898246357,-4529.6780707,0.00023647,2]
[405183581,1770898246368,-505.8883265,0.00023649,2]
[405183582,1770898246378,-9953.1388357,0.00023649,2]
[405183585,1770898246391,-500.0,0.00023651,2]
[405183586,1770898246400,-500.0,0.00023651,2]
[405183588,1770898246411,-500.0,0.00023651,2]
[405183591,1770898246421,-568.28328885,0.00023651,2]
[405183593,1770898246431,-151.0,0.00023651,2]
[405183595,1770898246441,-151.0,0.00023651,2]
[405183597,1770898246450,-151.0,0.00023651,2]
[405183598,1770898246459,-500.0,0.00023656,2]
[405183600,1770898246469,-4998.5068871,0.00023656,2]
[405183603,1770898246478,-5651.91775004,0.00023656,2]
[405183608,1770898246527,-269.35299147,0.00023656,2]
[405184154,1770898252424,242.200235,0.00021546,2]
[405184849,1770898260997,5000.0,0.0002352,2]
[405185615,1770898268832,661.72203831,0.0002352,2]
[405185628,1770898268945,1320.1700335,0.00022847,2]
[405186918,1770898283652,5000.0,0.0002352,2]
[405189054,1770898306027,4895.06129258,0.0002352,2]
[405196305,1770898383261,208.38894004,0.000235,2]
[405196611,1770898415198,-801.62844904,0.00023555,2]
[405196612,1770898417233,-604.45262344,0.00023555,2]
[405196613,1770898421052,-231.00000006,0.00023555,2]
[405196614,1770898485571,1977.22738769,0.000235,2]
[405196615,1770898572151,1000.0,0.00022625,30]
[405196616,1770898634211,345.13264542,0.00021918,2]
[405196617,1770898713851,166.66666666,0.000235,2]
[405196626,1770899022907,5000.0,0.0002352,2]
[405196628,1770899110029,579.93346192,0.00013699,2]
[405196733,1770899430822,300.0,0.00013673,2]
[405196734,1770899430849,414.58196054,0.00014221,2]
[405196754,1770899432398,-369.35987892,0.00023578,2]
[405196755,1770899432408,-790.0,0.00023578,2]
[405196756,1770899432417,-379.28471305,0.00023594,10]
[405196757,1770899432429,-305.71528695,0.00023594,10]
[405196758,1770899432439,-207.06,0.000236,3]
[405196759,1770899432448,-1066.18885135,0.00023602,10]
[405196760,1770899432460,-1722.00114865,0.00023602,10]
[405196761,1770899432469,-2323.49,0.00023602,10]
[405196762,1770899432479,-1936.24,0.00023602,10]
[405196764,1770899432489,-1034.25384388,0.00023609,2]
[405196767,1770899432501,-165.74615612,0.00023609,2]
[405196769,1770899432510,-181.03898189,0.0002361,2]
[405196770,1770899432519,-151.0,0.0002361,2]
[405196771,1770899432529,-151.0,0.0002361,2]
[405196772,1770899432539,-151.0,0.0002361,2]
[405196773,1770899432549,-164.142587,0.0002361,2]
[405196775,1770899432559,-500.0,0.0002361,2]
[405196777,1770899432568,-250.0,0.0002361,2]
[405196779,1770899432579,-500.0,0.0002361,2]
[405196781,1770899432588,-7.40855219,0.0002361,2]
[405196784,1770899432599,-242.59144781,0.0002361,2]
[405196786,1770899432608,-158.83923934,0.0002361,2]
[405197025,1770899440684,-3e-08,0.00023602,10]
[405197479,1770899445482,-1613.52999997,0.00023602,10]
[405197480,1770899445491,-565.59613714,0.00023609,2]
[405197481,1770899445500,-351.68670493,0.00023609,2]
[405197482,1770899445509,-500.0,0.00023609,2]
[405197483,1770899445518,-218.73886317,0.00023609,2]
[405197484,1770899445527,-500.0,0.00023609,2]
[405197485,1770899445536,-500.0,0.00023609,2]
[405197486,1770899445545,-301.70539947,0.00023609,2]
[405197487,1770899445554,-448.71713451,0.00023609,2]
[405197583,1770899447301,-51.28286549,0.00023609,2]
[405197584,1770899447311,-500.0,0.00023609,2]
[405197585,1770899447321,-500.0,0.00023609,2]
[405197586,1770899447331,-500.0,0.00023609,2]
[405197587,1770899447340,-500.0,0.00023609,2]
[405197588,1770899447350,-500.0,0.00023609,2]
[405197589,1770899447360,-500.0,0.00023609,2]
[405197590,1770899447370,-600.34495679,0.00023609,2]
[405197591,1770899447380,-500.0,0.00023609,2]
[405197592,1770899447389,-500.0,0.00023609,2]
[405197593,1770899447399,-500.0,0.00023609,2]
[405197594,1770899447408,-500.0,0.00023609,2]
[405197595,1770899447417,-500.0,0.00023609,2]
[405197596,1770899447427,-500.0,0.00023609,2]
[405197597,1770899447436,-500.0,0.00023609,2]
[405197598,1770899447445,-195.79349504,0.00023609,2]
[405197603,1770899453477,5000.0,0.0002352,2]
[405197604,1770899475745,5000.0,0.0002352,2]
[405197622,1770899649385,3045.59430627,0.0002352,2]
[405197625,1770899714649,500.0,0.00013273,2]
[405197626,1770899719808,500.0,0.00013273,2]
[405197627,1770899722041,501.66966871,0.00013273,2]
[405197628,1770899722712,500.0,0.00013273,2]
[405197629,1770899726159,501.96606942,0.00013273,2]
[405197630,1770899726851,500.0,0.00013273,2]
[405197631,1770899727056,500.0,0.00013273,2]
[405197632,1770899730534,500.0,0.00013273,2]
[405197633,1770899732854,500.0,0.00013699,2]
[405197634,1770899732905,1000.0,0.00014247,2]
[405197635,1770899732953,410.03714794,0.00014795,2]
[405197637,1770899768358,500.0,0.00013273,2]
[405197638,1770899768425,1000.0,0.00013821,2]
[405197639,1770899768479,1500.0,0.00014368,2]
[405197640,1770899768533,413.68938279,0.00014916,2]
[405197641,1770899772742,504.43520412,0.00013273,2]
[405197643,1770899778708,499.1459988,0.00022604,2]
[405197663,1770899823259,502.28937312,0.00013699,2]
[405197664,1770899824332,506.83127082,0.00013699,2]
[405197665,1770899824430,501.65947119,0.00013699,2]
[405197666,1770899825344,503.54195797,0.00013699,2]
[405197667,1770899826124,500.0,0.00013273,2]
[405197668,1770899826284,502.71859846,0.00013699,2]
[405197669,1770899829065,501.40405697,0.00013699,2]
[405197670,1770899829145,552.43352854,0.00013699,2]
[405197671,1770899829300,250.0,0.0002335,2]
[405197672,1770899834693,500.0,0.00013699,2]
[405197683,1770899946577,505.19800785,0.00013273,2]
[405197689,1770900007038,331.90442977,0.00013273,2]
[405197690,1770900011119,300.0,0.00013673,2]
[405197691,1770900011322,500.5549585,0.00013699,2]
[405197692,1770900012621,191.52629374,0.00013699,2]
[405197694,1770900013621,500.0,0.00013273,2]
[405197695,1770900013646,501.22714785,0.00013273,2]
[405197696,1770900014299,500.66002311,0.00013699,2]
[405197697,1770900017214,500.0,0.00013273,2]
[405197698,1770900017268,570.17960241,0.00013821,2]
[405197699,1770900020115,174.29142068,0.00013699,2]
[405197700,1770900021729,502.67751847,0.00013699,2]
[405197701,1770900023598,500.0,0.00013273,2]
[405197702,1770900024915,502.7273199,0.00013699,2]
[405197703,1770900031696,500.0,0.00013273,2]
[405197704,1770900031790,500.0,0.00013273,2]
[405197705,1770900032833,502.19282082,0.00013273,2]
[405197710,1770900083659,283.63187505,0.00013273,2]
[405197711,1770900086041,500.0,0.00013699,2]
[405197712,1770900086084,1500.0,0.00014795,2]
[405197713,1770900086146,1000.0,0.00014247,2]
[405197718,1770900099493,1000.0,0.00013821,2]
[405197719,1770900099537,500.0,0.00013273,2]
[405197720,1770900105666,500.0,0.00013273,2]
[405197721,1770900105703,495.9787258,0.00014368,2]
[405197722,1770900105766,1000.0,0.00013821,2]
[405197723,1770900109994,460.63189812,0.00013699,2]
[405197734,1770900132112,504.81199555,0.00013273,2]
[405197735,1770900133153,500.0,0.00013273,2]
[405197736,1770900138132,1705.0545793,0.00022594,2]
[405197739,1770900272222,174.44798864,0.00022467,2]
[405197740,1770900274904,313.69237318,0.00022467,2]
[405197745,1770900304594,568.57621082,0.00013699,2]
[405197747,1770900314066,500.0,0.00013699,2]
[405197762,1770900365926,500.0,0.00013699,2]
[405197763,1770900370487,502.26911408,0.00013273,2]
[405197764,1770900372696,500.0,0.00013273,2]
[405197768,1770900383357,307.97659876,0.00013273,2]
[405197769,1770900386202,150.85288721,0.00013699,2]
[405197791,1770900546306,776.2178052,0.00022587,2]
[405197792,1770900600046,3299.09918071,0.0002352,2]
[405197794,1770900607566,200.0,0.00017,2]
[405197795,1770900608249,200.0,0.000171,2]
[405197796,1770900608795,200.0,0.000171,2]
[405197798,1770900609550,200.0,0.000172,2]
[405197799,1770900610244,200.0,0.000172,2]
[405197811,1770900610925,200.0,0.000173,2]
[405197812,1770900610952,175.7615968,0.000233,12]
[405197826,1770900611624,200.0,0.000173,2]
[405197831,1770900612284,200.0,0.000174,2]
[405197833,1770900612941,200.0,0.000174,2]
[405197834,1770900613555,200.0,0.000175,2]
[405197835,1770900614300,200.0,0.000175,2]
[405197836,1770900614848,200.0,0.000176,2]
[405197837,1770900615555,200.0,0.000176,2]
[405197838,1770900616212,200.0,0.000177,2]
[405197839,1770900617082,2319.86795435,0.00017455,2]
[405197840,1770900617219,200.0,0.000177,2]
[405197841,1770900617971,200.0,0.000178,2]
[405197842,1770900618338,207.8946023,0.00017455,2]
[405197843,1770900618528,200.0,0.000178,2]
[405197844,1770900619328,200.0,0.000179,2]
[405197845,1770900619707,1310.6829626,0.00017455,2]
[405197846,1770900620020,200.0,0.000179,2]
[405197848,1770900620701,200.0,0.00018,2]
[405197849,1770900621048,23409.36381785,0.00017455,2]
[405197850,1770900621234,200.0,0.00018,2]
[405197851,1770900621895,200.0,0.000181,2]
[405197852,1770900622925,200.0,0.000181,2]
[405197853,1770900623599,200.0,0.000182,2]
[405197854,1770900624296,200.0,0.000182,2]
[405197855,1770900624826,200.0,0.000183,2]
[405197856,1770900625483,200.0,0.000183,2]
[405197857,1770900626068,200.0,0.000184,2]
[405197858,1770900626931,200.0,0.000184,2]
[405197859,1770900627578,200.0,0.000185,2]
[405197870,1770900631825,-389.45453913,0.00023548,2]
[405197871,1770900631835,-183.16823698,0.00023548,2]
[405197875,1770900634248,200.0,0.000185,2]
[405197889,1770900637547,200.0,0.000186,2]
[405197907,1770900637719,-605.83176302,0.00023548,2]
[405197909,1770900637728,-460.56,0.00023548,2]
[405197911,1770900637737,-1200.0,0.0002358,2]
[405197913,1770900637746,-395.917296,0.00023581,2]
[405197915,1770900637755,-500.0,0.00023581,2]
[405197916,1770900637764,-500.0,0.00023581,2]
[405197919,1770900637774,-500.0,0.00023581,2]
[405197921,1770900637783,-544.24237656,0.00023581,2]
[405197922,1770900637792,-762.98213126,0.00023581,2]
[405197925,1770900637803,-500.0,0.00023581,2]
[405197927,1770900637812,-500.0,0.00023581,2]
[405197928,1770900637821,-500.0,0.00023581,2]
[405197930,1770900637830,-762.98213126,0.00023581,2]
[405197932,1770900637840,-866.87761201,0.00023581,2]
[405197934,1770900637849,-500.0,0.00023581,2]
[405197936,1770900637858,-500.0,0.00023581,2]
[405197938,1770900637867,-762.98213126,0.00023581,2]
[405197940,1770900637876,-866.87761201,0.00023581,2]
[405197942,1770900637886,-500.0,0.00023581,2]
[405197944,1770900637895,-500.0,0.00023581,2]
[405197946,1770900637904,-762.98213126,0.00023581,2]
[405197948,1770900637913,-500.0,0.00023581,2]
[405197950,1770900637922,-866.87761201,0.00023581,2]
[405197952,1770900637930,-500.0,0.00023581,2]
[405197954,1770900637940,-500.0,0.00023581,2]
[405197956,1770900637950,-500.0,0.00023581,2]
[405197958,1770900637959,-762.98213126,0.00023581,2]
[405197959,1770900637968,-866.87761201,0.00023581,2]
[405197961,1770900637977,-500.0,0.00023581,2]
[405197963,1770900637986,-500.0,0.00023581,2]
[405197965,1770900637996,-762.98213126,0.00023581,2]
[405197967,1770900638005,-866.87761201,0.00023581,2]
[405197969,1770900638015,-500.0,0.00023581,2]
[405197971,1770900638024,-500.0,0.00023581,2]
[405197973,1770900638033,-762.98213126,0.00023581,2]
[405197975,1770900638043,-866.87761201,0.00023581,2]
[405197977,1770900638053,-500.0,0.00023581,2]
[405197979,1770900638062,-500.0,0.00023581,2]
[405197987,1770900638144,-762.98213126,0.00023581,2]
[405197990,1770900638160,-866.87761201,0.00023581,2]
[405197992,1770900638170,-513.84556864,0.00023581,2]
[405197994,1770900638179,-762.98213126,0.00023581,2]
[405197996,1770900638189,-866.87761201,0.00023581,2]
[405197998,1770900638201,-500.0,0.00023581,2]
[405198000,1770900638210,-500.0,0.00023581,2]
[405198002,1770900638221,-866.87761201,0.00023581,2]
[405198004,1770900638230,-762.98213126,0.00023581,2]
[405198005,1770900638239,-500.0,0.00023581,2]
[405198007,1770900638249,-866.87761201,0.00023581,2]
[405198009,1770900638259,-762.98213126,0.00023581,2]
[405198011,1770900638269,-500.0,0.00023581,2]
[405198013,1770900638279,-500.0,0.00023581,2]
[405198015,1770900638288,-866.87761201,0.00023581,2]
[405198017,1770900638297,-500.0,0.00023581,2]
[405198018,1770900638307,-762.98213126,0.00023581,2]
[405198020,1770900638317,-500.0,0.00023581,2]
[405198022,1770900638327,-866.87761201,0.00023581,2]
[405198024,1770900638336,-500.0,0.00023581,2]
[405198026,1770900638345,-762.98213126,0.00023581,2]
[405198028,1770900638355,-866.87761201,0.00023581,2]
[405198030,1770900638365,-762.98213126,0.00023581,2]
[405198032,1770900638375,-500.0,0.00023581,2]
[405198034,1770900638384,-866.87761201,0.00023581,2]
[405198035,1770900638393,-762.98213126,0.00023581,2]
[405198037,1770900638403,-500.0,0.00023581,2]
[405198039,1770900638413,-500.0,0.00023581,2]
[405198041,1770900638422,-866.87761201,0.00023581,2]
[405198043,1770900638432,-762.98213126,0.00023581,2]
[405198045,1770900638442,-500.0,0.00023581,2]
[405198047,1770900638451,-500.0,0.00023581,2]
[405198049,1770900638461,-866.87761201,0.00023581,2]
[405198051,1770900638471,-762.98213126,0.00023581,2]
[405198052,1770900638481,-500.0,0.00023581,2]
[405198054,1770900638490,-866.87761201,0.00023581,2]
[405198056,1770900638500,-762.98213126,0.00023581,2]
[405198058,1770900638509,-866.87761201,0.00023581,2]
[405198060,1770900638519,-500.0,0.00023581,2]
[405198062,1770900638529,-762.98213126,0.00023581,2]
[405198064,1770900638538,-500.0,0.00023581,2]
[405198065,1770900638547,-762.98213126,0.00023581,2]
[405198067,1770900638557,-500.0,0.00023581,2]
[405198069,1770900638567,-866.87761201,0.00023581,2]
[405198071,1770900638576,-500.0,0.00023581,2]
[405198072,1770900638586,-500.0,0.00023581,2]
[405198073,1770900638595,-866.87761201,0.00023581,2]
[405198074,1770900638604,-866.87761201,0.00023581,2]
[405198075,1770900638613,-500.0,0.00023581,2]
[405198076,1770900638622,-500.0,0.00023581,2]
[405198077,1770900638631,-762.98213126,0.00023581,2]
[405198078,1770900638641,-866.87761201,0.00023581,2]
[405198079,1770900638650,-344.65492076,0.00023581,2]
[405198080,1770900638659,-762.98213126,0.00023581,2]
[405198081,1770900638668,-866.87761201,0.00023581,2]
[405198082,1770900638677,-500.0,0.00023581,2]
[405198083,1770900638686,-500.0,0.00023581,2]
[405198084,1770900638695,-762.98213126,0.00023581,2]
[405198085,1770900638704,-762.98213126,0.00023581,2]
[405198086,1770900638713,-866.87761201,0.00023581,2]